Cogmind - Beta 16 @@@ ROGUE MODE // 2025.10.22 @ 16:13:38 Player: Sooty Result: Destroyed by Y-64 Sentinel with Wave Gun Performance ------------- Evolutions (3) 1500 Regions Visited (8) 1600 Robots Destroyed (23) 115 Value Destroyed (887) 887 Prototype IDs (23) 460 Alien Tech Used (0) 0 Bonus (325) 325 TOTAL SCORE: 4887 Bonus ------- Follower Combat Kills 25 Aligned with FarCom 300 Cogmind --------- Core Integrity 0/700 Matter 300/300 Energy 95/100 System Corruption 0% Temperature Cool (27) Movement Core (50) Location -7/Lower Caves Parts ------- > --- POWER (2) -------- (None) > --- PROPULSION (3) --- (None) > --- UTILITY (6) ------ Improved Signal Interpreter > --- WEAPON (2) ------- Spear > --- INVENTORY (5) ---- Hacking Suite Relay Coupler [NC] (18) Relay Coupler [Specialist] (14) Remote Datajack Peak State ------------ > --- POWER ------------ Light Deuterium Engine Improved Deuterium Engine > --- PROPULSION ------- VSS Leg Improved Carbon-fiber Leg Improved Carbon-fiber Leg > --- UTILITY ---------- Small Storage Unit Improved Sensor Array Improved Signal Interpreter Weapon Shielding Hardened Light Armor Plating Improved Shield Generator > --- WEAPON ----------- Heavy Particle Cannon Plasma Cannon > --- INVENTORY -------- Hacking Suite Relay Coupler [NC] Relay Coupler [Specialist] Latent Energy Streamer Firepult Remote Datajack Spear [Rating: 43] Favorites ----------- Power Improved Deuterium Engine Engine Improved Deuterium Engine Power Core Light Nuclear Core Propulsion Improved Carbon-fiber Leg Treads Light Treads Leg Improved Carbon-fiber Leg Wheel Compact Wheel Utility Small Storage Unit Device Improved Sensor Array Storage Small Storage Unit Processor Improved Signal Interpreter Protection Weapon Shielding Weapon Heavy Particle Cannon Energy Gun Medium Laser Energy Cannon Heavy Particle Cannon Ballistic Gun Light Assault Rifle Launcher Grenade Launcher Special Weapon Remote Datajack Piercing Weapon Spear Build | -11 -10 -10 -10 -9 -8 -7 -7 -7 ------- Run | Yrd Mat Min Exi Min Mat Fac Low Low Slots Evolved 6 | . . . . . 4 2 . . Power 1 | . . . . . . 1 . . Propulsion 1 | . . . . . 1 . . . Utility 4 | . . . . . 3 1 . . Weapon . | . . . . . . . . . Parts Attached 40 | 3 7 2 . 8 10 5 1 4 Power 5 | . 2 . . 1 . 1 . 1 Engine 4 | . 2 . . 1 . 1 . . Core 1 | . . . . . . . . 1 Reactor . | . . . . . . . . . Propulsion 11 | 1 3 . . 4 1 1 . 1 Treads 2 | 1 1 . . . . . . . Leg 7 | . . . . 4 1 1 . 1 Wheel 2 | . 2 . . . . . . . Hover . | . . . . . . . . . Flight . | . . . . . . . . . Utility 12 | 1 . 1 . 1 7 2 . . Device 6 | . . 1 . . 4 1 . . Storage 1 | 1 . . . . . . . . Processor 2 | . . . . . 2 . . . Hackware . | . . . . . . . . . Protection 3 | . . . . 1 1 1 . . Artifact . | . . . . . . . . . Weapon 12 | 1 2 1 . 2 2 1 1 2 Energy Gun 4 | 1 . 1 . 1 1 . . . Energy Cannon 3 | . . . . 1 1 1 . . Ballistic Gun 2 | . 1 . . . . . . 1 Ballistic Cannon . | . . . . . . . . . Launcher 1 | . 1 . . . . . . . Special Weapon 1 | . . . . . . . 1 . Impact Weapon . | . . . . . . . . . Slashing Weapon . | . . . . . . . . . Piercing Weapon 1 | . . . . . . . . 1 Special Melee Weapon . | . . . . . . . . . Unidentified Prototypes . | . . . . . . . . . Parts Lost 18 | . 1 1 . 1 . . . 15 Power 5 | . 1 . . 1 . . . 3 Propulsion 4 | . . . . . . . . 4 Utility 5 | . . . . . . . . 5 Weapon 4 | . . 1 . . . . . 3 Highest Loss Streak 12 | . 1 1 . 1 . . . 12 To Critical Strikes 1 | . . . . 1 . . . . Average Backups 6 | 5 6 8 7 6 6 6 6 6 Power . | 1 . . . . . . . . Propulsion . | 2 2 1 1 1 . . . . Utility 3 | . . 4 3 3 2 3 3 3 Weapon 2 | 1 2 3 3 2 3 2 1 1 Tool/Special . | . . . . . . . . . Unused Backups 11 | . 2 . 3 . 1 . 1 4 Power . | . . . . . . . . . Propulsion 2 | . 2 . . . . . . . Utility 6 | . . . 1 . 1 . . 4 Weapon 3 | . . . 2 . . . 1 . Tool/Special . | . . . . . . . . . Average Slot Usage (%) 86 | . 65 97 100 75 84 97 100 62 Engine 13 | . 13 14 14 14 9 14 15 7 Treads 3 | . 15 . . 10 . . . . Leg 12 | . . . . 5 19 23 23 15 Wheel 5 | . 3 28 28 1 . . . . Device 11 | . . 12 14 10 16 15 15 4 Storage 10 | . 14 14 14 14 9 7 7 4 Processor 3 | . . . . . 8 7 7 7 Protection 7 | . . . . 3 9 13 15 7 Energy Gun 6 | . 14 26 28 3 3 . . . Energy Cannon 9 | . . . . 10 8 14 14 8 Peak Build Rating 43 | 3 6 9 12 31 35 43 43 41 Average Rating 24 | 2 4 8 10 19 28 41 40 26 On Entrance 19 | . 3 6 9 12 22 35 43 41 Avg Prop Armor Cover (%) . | . . . . . . . . . Naked Turns . | . . . . . . . . . Heaviest Build 44 | 7 13 14 14 32 30 44 44 44 Greatest Support 48 | 20 40 32 32 32 48 48 48 48 Greatest Overweight (x) 2 | . . . . 2 . . . 1 Average Overweight (x) . | . . . . . . . . . Largest Inventory Capacity 8 | 8 8 8 8 8 8 8 8 8 Average Capacity 7 | 7 8 8 8 8 8 8 8 6 Most Carried 8 | 7 8 8 8 8 8 8 8 7 Average Carried 7 | 5 6 8 7 7 7 7 6 5 Final Capacity 8 | 8 8 8 8 8 8 8 8 5 Final Carried 8 | 7 8 8 8 8 8 8 7 4 Class Distribution -------------------- 97% | Mutant Dominant Class ---------------- Mutant | -10/Materials Mutant | -10/Mines Mutant | -10/Exiles Mutant | -9/Mines Mutant | -8/Materials Mutant | -7/Factory Mutant | -7/Lower Caves Mutant | -7/Lower Caves Resources | -11 -10 -10 -10 -9 -8 -7 -7 -7 ----------- Run | Yrd Mat Min Exi Min Mat Fac Low Low Matter Collected 756 | 230 15 107 . 130 60 42 138 34 Remotely . | . . . . . . . . . Salvage Created 1009 | . 45 90 . 221 198 42 50 363 Parts 62 | . 3 4 . 14 13 5 4 19 Haulers Intercepted . | . . . . . . . . . Recyclers Shooed . | . . . . . . . . . Parts Field Recycled . | . . . . . . . . . Retrieved Matter . | . . . . . . . . . Parts Self-Destructed 25 | . . . . . . . 4 21 Prevented . | . . . . . . . . . Parts Restored . | . . . . . . . . . Kills | -11 -10 -10 -10 -9 -8 -7 -7 -7 ------- Run | Yrd Mat Min Exi Min Mat Fac Low Low Combat Hostiles Destroyed 21 | . 2 2 . 4 2 1 1 9 Melee 7 | . . . . . . . . 7 Guns 4 | . 2 2 . . . . . . Cannons 7 | . . . . 1 2 1 1 2 AOE 3 | . . . . 3 . . . . Classes Destroyed 6 | . 2 1 . 1 1 1 . . Recycler 1 | . . . . . 1 . . . Watcher 1 | . 1 . . . . . . . Swarmer 5 | . 2 . . . . . . 3 Grunt 10 | . . 2 . 2 . . . 6 Sentry 4 | . . . . 2 2 . . . Programmer 2 | . . . . . . 1 1 . Best Kill Streak 3 | . 2 2 . 2 2 1 1 3 Combat Bots Only 3 | . 2 2 . 2 2 1 1 3 Max Kills in Single Turn 1 | . 1 1 . 1 1 1 1 1 Gunslinging . | . . . . . . . . . Exploded 1 | . . . . 1 . . . . Melee 1 | . . . . . . . . 1 Uniques/NPCs Destroyed . | . . . . . . . . . Combat | -11 -10 -10 -10 -9 -8 -7 -7 -7 -------- Run | Yrd Mat Min Exi Min Mat Fac Low Low Hostile Shots Fired 253 | . 22 17 . 22 10 6 8 168 Missed 74 | . 4 4 . 10 5 1 3 47 Hits 179 | . 18 13 . 12 5 5 5 121 Melee 6 | . . . . . . . 2 4 Projectile 173 | . 18 13 . 12 5 5 3 117 AOE 2 | . . . . 2 . . . . Critical Strikes 9 | . . 1 . 1 . . . 7 Damage Taken 2891 | . 160 183 . 305 76 75 33 2059 Core 905 | . 38 62 . 90 13 . . 702 Absorbed by Shields 102 | . . . . . . . 12 90 Redirected to Shielding 52 | . . . . . 5 9 9 29 Core Remaining (%) 73 | 100 . . . 24 97 . . . Volleys Fired 82 | . 16 10 . 7 19 2 11 17 Largest 2 | . 2 2 . 1 2 2 2 2 Hottest 155 | . 70 90 . 60 138 155 155 155 Shots Fired 111 | . 22 17 . 7 20 4 16 25 Gun 40 | . 21 17 . . 1 . . 1 Cannon 64 | . . . . 7 19 4 10 24 Launcher 1 | . 1 . . . . . . . Special 6 | . . . . . . . 6 . Kinetic 13 | . 6 6 . . . . . 1 Thermal 84 | . 15 11 . . 20 4 10 24 Explosive 1 | . 1 . . . . . . . Electromagnetic 7 | . . . . 7 . . . . Robot Hit Streak 7 | . 3 6 . 7 4 4 6 4 Robot Miss Streak 4 | . 2 3 . 1 4 . 3 2 Penetration Max . | . . . . . . . . . Secondary Targets . | . . . . . . . . . Shots Hit Robots 72 | . 8 9 . 1 6 3 10 35 Core Hits 36 | . 4 5 . 8 3 1 1 14 Critical Kills . | . . . . . . . . . Critical Parts Destroyed . | . . . . . . . . . Critical Strikes 4 | . 1 . . . . . . 3 Burn 1 | . 1 . . . . . . . Impale 3 | . . . . . . . . 3 Melee Attacks 25 | . . . . . . . . 25 Impact . | . . . . . . . . . Slashing . | . . . . . . . . . Piercing 25 | . . . . . . . . 25 Sneak Attacks . | . . . . . . . . . Combat Hostiles . | . . . . . . . . . Follow-up Attacks . | . . . . . . . . . Damage Inflicted 1928 | . 106 95 . 312 175 94 163 983 Guns 201 | . 106 95 . . . . . . Cannons 777 | . . . . 13 175 94 163 332 Explosions 299 | . . . . 299 . . . . Melee 651 | . . . . . . . . 651 Ramming . | . . . . . . . . . Kinetic 51 | . 18 33 . . . . . . Thermal 914 | . 88 62 . . 175 94 163 332 Explosive . | . . . . . . . . . Electromagnetic 312 | . . . . 312 . . . . Impact . | . . . . . . . . . Slashing . | . . . . . . . . . Piercing 651 | . . . . . . . . 651 Highest Corruption 9 | . . . . 9 . . . . Average Corruption 7 | . . . . 7 . . . . Corruption Purged . | . . . . . . . . . Corruption Blocked . | . . . . . . . . . Effects 13 | . . . . 13 . . . . Message Errors 1 | . . . . 1 . . . . Matter Fused 5 | . . . . 5 . . . . Energy Discharges 3 | . . . . 3 . . . . Data Loss (minor) 3 | . . . . 3 . . . . Alerts 1 | . . . . 1 . . . . Overload Shots . | . . . . . . . . . Overflow Damage 2 | . . . . . . . 2 . Projectiles 2 | . . . . . . . 2 . Explosions . | . . . . . . . . . Melee . | . . . . . . . . . Knockbacks . | . . . . . . . . . Impact . | . . . . . . . . . Kinetic . | . . . . . . . . . Secondary . | . . . . . . . . . Self-Inflicted Damage 23 | . 14 . . 9 . . . . Shots 2 | . 1 . . 1 . . . . Rammed . | . . . . . . . . . Targets Rammed . | . . . . . . . . . Kicked . | . . . . . . . . . Crushed . | . . . . . . . . . Highest Temperature 326 | . 60 236 . 30 78 210 315 326 Average Temperature 111 | . 31 137 . 12 27 106 130 167 Received Heat Transfer 890 | . . 126 . 60 18 . . 686 Effects 2 | . . . . . . 1 1 . Shutdowns 1 | . . . . . . . 1 . Interference 1 | . . . . . . 1 . . Siege Activations . | . . . . . . . . . Martial Activations . | . . . . . . . . . Shielding Activations . | . . . . . . . . . Robots Disrupted . | . . . . . . . . . Combat Hostiles . | . . . . . . . . . Robots Corrupted . | . . . . . . . . . Combat Hostiles . | . . . . . . . . . Parts Fried 2 | . . . . 2 . . . . Impact Corruptions . | . . . . . . . . . Robots Melted . | . . . . . . . . . Combat Hostiles . | . . . . . . . . . Parts Melted 3 | . . . . . . 2 1 . Heat Transferred 1747 | . 333 185 . . 259 124 274 572 Parts Sabotaged . | . . . . . . . . . Parts Stolen 2 | . . . . . . . 2 . Parts Stripped . | . . . . . . . . . Power Chain Reactions . | . . . . . . . . . Latent Energy Used 365 | . . . . 365 . . . . LE Corruption 9 | . . . . 9 . . . . Alert | -11 -10 -10 -10 -9 -8 -7 -7 -7 ------- Run | Yrd Mat Min Exi Min Mat Fac Low Low Maximum Alert Level . | . . . . . . . . . Low Security (%) 100 | 100 100 100 . 100 100 100 . . Level 1 . | . . . . . . . . . Level 2 . | . . . . . . . . . Level 3 . | . . . . . . . . . Level 4 . | . . . . . . . . . Level 5 . | . . . . . . . . . High Security . | . . . . . . . . . Max Security . | . . . . . . . . . Peak Influence 61 | . 49 33 . 61 50 30 . . Initial 3 | . . 3 . . . . . . Average 7 | . 13 5 . 9 8 2 . . Influence Increases 727 | . 79 50 . 161 92 30 90 225 Destroy 0b10 Robot/C 440 | . 40 40 . 100 40 20 20 180 Destroy 0b10 Robot/NC 10 | . 5 . . . 5 . . . Destroy Leader 72 | . 12 10 . 10 20 10 10 . Allied During Kill 2 | . . . . 2 . . . . Successful Hack 5 | . . . . . 5 . . . Disable Machine 30 | . 15 . . . 15 . . . Destroy Structure 18 | . 7 . . 4 7 . . . Lose Combat Pursuer 150 | . . . . 45 . . 60 45 Influence Decreases 692 | . 70 59 . 161 92 30 90 190 Entered New Map 6 | . . 6 . . . . . . Time Decay 501 | . 60 43 . 111 92 30 90 75 Lost Part 145 | . 10 10 . 10 . . . 115 Lost Ally 40 | . . . . 40 . . . . Squads Dispatched 2 | . . . . . 1 1 . . Investigation 1 | . . . . . 1 . . . Extermination 1 | . . . . . . 1 . . Reinforcement . | . . . . . . . . . Assault . | . . . . . . . . . Garrison . | . . . . . . . . . Intercept . | . . . . . . . . . Searches Triggered . | . . . . . . . . . Construction Impeded . | . . . . . . . . . Haulers Reinforced . | . . . . . . . . . Active Scanning Responses . | . . . . . . . . . Cargo Convoy Interrupts . | . . . . . . . . . Stealth | -11 -10 -10 -10 -9 -8 -7 -7 -7 --------- Run | Yrd Mat Min Exi Min Mat Fac Low Low Distress Signals 1 | . . . . . 1 . . . Communications Jammed . | . . . . . . . . . Distress Signals . | . . . . . . . . . Times Spotted 56 | . 5 2 . 9 12 2 5 21 Peak Tracking Total 17 | . 3 2 . 2 4 1 4 17 Tactical Retreats 6 | . . . . 2 . . 1 3 Traps | -11 -10 -10 -10 -9 -8 -7 -7 -7 ------- Run | Yrd Mat Min Exi Min Mat Fac Low Low Traps Triggered . | . . . . . . . . . Indirectly . | . . . . . . . . . Trap Hack Attempts . | . . . . . . . . . Triggered . | . . . . . . . . . Disarmed . | . . . . . . . . . Reprogrammed . | . . . . . . . . . Reused . | . . . . . . . . . Traps Extracted . | . . . . . . . . . Installed . | . . . . . . . . . Triggered . | . . . . . . . . . Machines | -11 -10 -10 -10 -9 -8 -7 -7 -7 ---------- Run | Yrd Mat Min Exi Min Mat Fac Low Low Machines Disabled 4 | . 1 . . 2 1 . . . Max in Single Turn 2 | . 1 . . 2 1 . . . Garrison Access 1 | . . . . . 1 . . . Machines Repaired . | . . . . . . . . . Machines Dismantled . | . . . . . . . . . Machines Sabotaged . | . . . . . . . . . Overloaded Fab Kills . | . . . . . . . . . Hacking | -11 -10 -10 -10 -9 -8 -7 -7 -7 --------- Run | Yrd Mat Min Exi Min Mat Fac Low Low Machines Accessed 12 | . 2 . 4 1 3 . 2 . Terminals 5 | . 2 . . . 2 . 1 . Fabricators . | . . . . . . . . . Repair Stations . | . . . . . . . . . Recycling Units . | . . . . . . . . . Scanalyzers . | . . . . . . . . . Garrison Access 1 | . . . . . 1 . . . Total Hacks 40 | . 4 . 27 1 6 . 2 . Successful 38 | . 4 . 27 1 4 . 2 . Failed 2 | . . . . . 2 . . . Catastrophic . | . . . . . . . . . Database Lockouts . | . . . . . . . . . Manual 3 | . . . 2 . . . 1 . Terminals 9 | . 4 . . . 4 . 1 . Fabricators . | . . . . . . . . . Repair Stations . | . . . . . . . . . Recycling Units . | . . . . . . . . . Scanalyzers . | . . . . . . . . . Garrison Access 2 | . . . . . 2 . . . Terminal Hacks 37 | . 4 . 27 1 3 . 2 . Record 31 | . 3 . 26 . 1 . 1 . Open Door 2 | . . . . 1 . . 1 . Alert Level 1 | . . . . . 1 . . . Locate Traps 1 | . 1 . . . . . . . Zone Layout 1 | . . . . . 1 . . . Proto ID Catalog 1 | . . . 1 . . . . . Fabricator Hacks . | . . . . . . . . . Repair Station Hacks . | . . . . . . . . . Recycling Unit Hacks . | . . . . . . . . . Scanalyzer . | . . . . . . . . . Garrison Access Hacks 1 | . . . . . 1 . . . Seal Access 1 | . . . . . 1 . . . Unauthorized Hacks . | . . . . . . . . . Terminals . | . . . . . . . . . Fabricators . | . . . . . . . . . Repair Stations . | . . . . . . . . . Recycling Units . | . . . . . . . . . Scanalyzers . | . . . . . . . . . Garrison Access . | . . . . . . . . . Data Cores Recovered . | . . . . . . . . . Used . | . . . . . . . . . Hacking Detections 2 | . . . . . 2 . . . Full Trace Events 1 | . . . . . 1 . . . Feedback Events . | . . . . . . . . . Feedback Blocked . | . . . . . . . . . Robot Schematics Acquired . | . . . . . . . . . Robots Built . | . . . . . . . . . Authchips . | . . . . . . . . . Time . | . . . . . . . . . Total Robot Build Rating . | . . . . . . . . . Part Schematics Acquired . | . . . . . . . . . Parts Built . | . . . . . . . . . Authchips . | . . . . . . . . . Time . | . . . . . . . . . Total Part Build Rating . | . . . . . . . . . Part Studies Acquired . | . . . . . . . . . Parts Repaired . | . . . . . . . . . Time . | . . . . . . . . . Parts Recycled . | . . . . . . . . . Recycled Matter . | . . . . . . . . . Retrieved Matter . | . . . . . . . . . Retrieved Components . | . . . . . . . . . Parts Scanalyzed . | . . . . . . . . . Part Schematics Acquired . | . . . . . . . . . Parts Damaged . | . . . . . . . . . Bothacking | -11 -10 -10 -10 -9 -8 -7 -7 -7 ------------ Run | Yrd Mat Min Exi Min Mat Fac Low Low Used RIF Installer . | . . . . . . . . . Robots Hacked . | . . . . . . . . . Non-combat . | . . . . . . . . . Combat . | . . . . . . . . . Robot Hacks Applied . | . . . . . . . . . Relay Couplers Released 3 | . . . . . 3 . . . Machine Destruction 3 | . . . . . 3 . . . Fabnet Peak Effective % . | . . . . . . . . . Robots Rewired . | . . . . . . . . . Allies Hacked . | . . . . . . . . . Hacks Repelled . | . . . . . . . . . Allies | -11 -10 -10 -10 -9 -8 -7 -7 -7 -------- Run | Yrd Mat Min Exi Min Mat Fac Low Low Total Allies 3 | . . 3 . . . . . . Largest Group 3 | . . 3 3 3 . . . . Highest-Rated Group 40 | . . 40 40 40 . . . . Highest-Rated Ally 16 | . . 16 16 16 . . . . Total Orders . | . . . . . . . . . Ally Attacks 5 | . . . . 5 . . . . Total Damage 62 | . . . . 62 . . . . Kills 1 | . . . . 1 . . . . Allies Corrupted . | . . . . . . . . . Allies Melted . | . . . . . . . . . Intel | -11 -10 -10 -10 -9 -8 -7 -7 -7 ------- Run | Yrd Mat Min Exi Min Mat Fac Low Low Active Infowar (turns) 1817 | . . . . . 454 467 820 76 Sensors 1817 | . . . . . 454 467 820 76 Robot Analysis Total . | . . . . . . . . . Derelict Logs Recovered 5 | . . 1 . 2 . . 2 . Drone Launches . | . . . . . . . . . Drone Recoveries . | . . . . . . . . . Exploration | -11 -10 -10 -10 -9 -8 -7 -7 -7 ------------- Run | Yrd Mat Min Exi Min Mat Fac Low Low Turns Passed 4070 | 118 278 284 365 994 455 467 820 289 Spaces Moved 2801 | 58 146 250 339 488 294 377 705 144 Core 6 | 6 . . . . . . . . Treads 474 | 52 118 . . 304 . . . . Legs 1677 | . . . . 157 294 377 705 144 Wheels 644 | . 28 250 339 27 . . . . Hover . | . . . . . . . . . Flight . | . . . . . . . . . Fastest Speed 50 | 50 100 100 100 100 110 110 110 105 Average Speed 126 | 148 148 100 100 194 118 110 110 114 Slowest Speed 260 | 160 160 100 100 260 120 110 110 190 Overloaded Moves . | . . . . . . . . . Propulsion Burnouts . | . . . . . . . . . Robots Hopped . | . . . . . . . . . Potential Cave-ins . | . . . . . . . . . Cave-ins Triggered . | . . . . . . . . . Exploration Rate (%) 39 | 5 30 54 64 69 30 11 76 19 Regions Visited 8 Branch Regions 5 Pre-discovered Areas 1 | . . 1 . . . . . . Known Exits Taken 3 | . . . . . 1 1 1 . Unknown Exits Taken 5 | 1 1 1 1 1 . . . . Scrap Searched 5 | . . . . 1 . . 3 1 Spaces Dug 5 | . . . . . 4 . . 1 Terrain Destroyed 17 | . 6 . . 2 8 . . 1 Melee 1 | . . . . . . . . 1 Projectile 8 | . . . . . 8 . . . AOE 8 | . 6 . . 2 . . . . Terrain Rammed . | . . . . . . . . . Walls Destroyed . | . . . . . . . . . Machines Disabled . | . . . . . . . . . Actions | -11 -10 -10 -10 -9 -8 -7 -7 -7 --------- Run | Yrd Mat Min Exi Min Mat Fac Low Low Total 3186 | 89 186 267 366 530 382 426 736 204 Wait 159 | 20 4 6 19 11 40 30 16 13 Move 2793 | 57 145 249 338 487 293 376 704 144 Hop . | . . . . . . . . . Pick Up 43 | 9 8 . 3 6 9 5 2 1 Fast Attach 10 | 1 . 2 . 1 2 3 . 1 Attach 26 | 2 6 . . 7 6 1 1 3 Detach 5 | . 1 . . 2 1 . 1 . Swap 12 | . 3 . . 1 5 2 1 . Drop 29 | . 3 . 4 8 7 7 . . Fire 82 | . 16 10 . 7 19 2 11 17 Melee 25 | . . . . . . . . 25 Ram . | . . . . . . . . . Kick . | . . . . . . . . . Crush . | . . . . . . . . . Escape Stasis . | . . . . . . . . . Rewire 2 | . . . 2 . . . . . Trap . | . . . . . . . . . Miscellaneous . | . . . . . . . . . Route ------- -11/Scrapyard -10/Materials -10/Mines -10/Exiles (discovered 2 exits: *Min x2) -9/Mines -8/Materials -7/Factory -7/Lower Caves -7/Lower Caves History --------- Turn | Location | Event 16 | -11/Scrapyard | Discovered new exit (range 16) 119 | -11/Scrapyard | Entered Materials 352 | -10/Materials | Build established: Mutant 382 | -10/Materials | Discovered new exit (range 16) 397 | -10/Materials | Entered Mines 481 | -10/Mines | Assisted by bots powering up and referring to "LRC-V3" 575 | -10/Mines | Learned location of Recycling (-7) 670 | -10/Mines | Deemed a non-threat by the Exiles lab entrance 670 | -10/Mines | Discovered new exit (range 5) 681 | -10/Mines | Entered Exiles 681 | -10/Exiles | Accompanied by 3 allies 696 | -10/Exiles | Discovered new exit (range 15) 712 | -10/Exiles | Met 8R-AWN 732 | -10/Exiles | Met EX-HEX 797 | -10/Exiles | Met EX-BIN 818 | -10/Exiles | Aligned with FarCom system 819 | -10/Exiles | Given EX-Vault access code 871 | -10/Exiles | Opened EX-Vault 888 | -10/Exiles | Found Firepult 912 | -10/Exiles | Found Latent Energy Streamer 918 | -10/Exiles | Exiles lab attacked by MAIN.C 1015 | -10/Exiles | Discovered new exit (range 14) 1046 | -10/Exiles | Stole two prototypes: Latent Energy Streamer, Firepult 1046 | -10/Exiles | Entered Mines 1046 | -9/Mines | Accompanied by 3 allies 1047 | -9/Mines | Assembled infested the area 1052 | -9/Mines | Met a Derelict bent on vengeance 1067 | -9/Mines | Met a Derelict who couldn't figure out how to use a Trap Extractor 1154 | -9/Mines | Learned Materials terminal intel 1519 | -9/Mines | Learned Materials terminal intel 1657 | -9/Mines | Lost 3 allies 1727 | -9/Mines | Core integrity fell below 50% 1771 | -9/Mines | Joined a pair of Derelicts in attacking an 0b10 outpost 2030 | -9/Mines | Discovered new exit (range 6) 2040 | -9/Mines | Entered Materials 2040 | -8/Materials | Evolved 4 slots: Propulsion x1, Utility x3 2041 | -8/Materials | Loaded intel: 12 terminal locations 2469 | -8/Materials | Discovered new exit (range 9) 2494 | -8/Materials | Identified exit to Factory 2495 | -8/Materials | Entered Factory 2495 | -7/Factory | Evolved 2 slots: Power x1, Utility x1 2497 | -7/Factory | FarCom data flow suspended 2954 | -7/Factory | Discovered new exit (range 8) 2960 | -7/Factory | Identified exit to Lower Caves 2962 | -7/Factory | Entered Lower Caves 2962 | -7/Lower Caves | Spotted PB-GYL(f) 2962 | -7/Lower Caves | Spotted SZ-4WD(f) 2963 | -7/Lower Caves | Firepult stolen by Master Thief 2964 | -7/Lower Caves | Encountered a Master Thief 2964 | -7/Lower Caves | Encountered a Master Thief 2965 | -7/Lower Caves | Latent Energy Streamer stolen by Master Thief 3008 | -7/Lower Caves | Learned Factory stockpile data 3602 | -7/Lower Caves | Learned location of 1 exit from Factory 3669 | -7/Lower Caves | Discovered new exit (range 7) 3675 | -7/Lower Caves | Identified exit to Lower Caves 3782 | -7/Lower Caves | Entered another Lower Caves area 3817 | -7/Lower Caves | Attacked by a faux Warlord 3880 | -7/Lower Caves | Attracted the attention of an 0b10 base 3977 | -7/Lower Caves | Core integrity fell below 50% 4002 | -7/Lower Caves | Lost 12 parts (2p3n5u2w) 4044 | -7/Lower Caves | Core integrity fell below 20% 4071 | -7/Lower Caves | Destroyed by Y-64 Sentinel with Wave Gun Last Messages --------------- 04053_ Slug penetrates Wall. 04054_ Y-64 Sentinel suffers critical hit (Impale). 04056_ Imp. Heat Sink fries itself beyond repair. 04058_ Aluminum Leg fries itself beyond repair. 04060_ Particle Gun fries itself beyond repair. 04060_ Acquired 10 matter. 04062_ Slug penetrates Wall. 04062_ Y-64 Sentinel suffers critical hit (Impale). 04065_ Aluminum Leg destroyed. 04065_ Penetrated by Slug. 04065_ Hvy. Machine Gun destroyed. 04068_ Lgt. Nuclear Core destroyed. 04069_ Imp. Heat Sink fries itself beyond repair. 04070_ Aluminum Leg fries itself beyond repair. 04071_ Critical hit (Burn: +37). Map ----- +----------------------------------------------------+ | ?????????????????????????????????????????????????? | | ?????????????????????????????????????????????????? | | ?????????????????????????????????????????????????? | | ???????##????????????????????????????????????????? | | ???????? ??????????????????????????????????????? | | ???????? ????????????????????????????????????? | | ???????? ########???????????????????????????? | | ?????????? #???????????????????????????? | | ???????????? ##################??????????? | | ?????????????????# ###????????? | | ?????????????????# %% ##??????? | | ?????????????????# ########/+###### ###????? | | ?????????????????# # # #??"# ##???? | | ?????????????????# # !# #? "# ##??? | | ?????????????????# # % " #? "# #?# ##?? | | ?????????????????# ## %## # "# #?# ### | | ?????????????????# %# % # "# ### | | ?????????????????# ; # "# ## %* | | ?????????????????# + # # = ## | | ?????????????????# # " " $+ # ### | | ?????????????????# # """"" +! ### ##?? | | ?????????????????# # #!%#### #??? | | ?????????????????# # T# ### ##??? | | ?????????????????# #""" "# ## #???? | | ?????????????????# #??"Y ""# #???? | | ?????????????????# #??" @%% """"""# #???? | | ?????????????????# ######;+######## ## #???? | | ?????????????????# !%* %[%/ %[ ### ##???? | | ????????????????# =*==% #?## ##????? | | ???????????????# ### ##??# #?????? | | ??????????????# #??? #?????? | | ?????????????# ###??? #?????? | | ???????????? ##????? ##?????? | | ?????????? ##??????#???????? | | ????????? ## ###???????????????? | | ????????### ##?# ## #?????????????????? | | ??????????# #??? ### ????????????????? | | ??????????# ???# ##?# ????????????????? | | ??????????# ????##??# #???????????????? | | ??????????? ????????# ###???????????????? | | ??????????????????????? #######?????????????????? | | ???????????????????????###???????????????????????? | | ?????????????????????????????????????????????????? | | ?????????????????????????????????????????????????? | | ?????????????????????????????????????????????????? | | ?????????????????????????????????????????????????? | | ?????????????????????????????????????????????????? | | ?????????????????????????????????????????????????? | | ?????????????????????????????????????????????????? | | ?????????????????????????????????????????????????? | +----------------------------------------------------+ Best States ------------- Heat Dissipation 39 Energy Generation 25 Energy Capacity 330 Matter Stores 300 Matter Capacity 300 Sight Range 16 Robot Scan Range 15 Terrain Scan Density 10 Armor Coverage 225 Weapon Shielding 33 Evasion (%) 63 Recoil Reduction 2 Item Schematics ----------------- None Robot Schematics ------------------ None Fabricated ------------ Nothing Repaired ---------- Nothing Studied --------- None Alien Tech Used ----------------- None Achievements -------------- Consequences Morally Flexible Sixth Sense Throw Away The Key Challenges ------------ None Game ------ Seed PiercingCooledSegregator Manual? 0 Play Time 00:53:27 Cumulative 27.7 hours Start 2025.10.22 @ 15:12:01 End 2025.10.22 @ 16:13:38 Sessions 1 Manual Loads 0 Difficulty Rogue Special Mode None Game No. 32 Rogue 32 Adventurer 0 Explorer 0 Win Type - Total 0 Types 0/0/0/0/0/0/0/0/0/0 Lore% 13 Gallery% 23 Achievement% 12 Wizard Run 0 Options --------- Layout 1 ASCII 0 Keyboard 0 Movement Mouse Keybinds 0 Fullscreen 1 Font 24/Terminus Map View 50x35 Zoom Use 0% Tactical HUD 1 Map Filters NONE Filters NONE Steam 1 RUN: a438be8e-0b57-4674-9b3a-6bc59dbaf28e